fUST/lending_fUST_20250425
["ID","MTS","AMOUNT","RATE_DAILY","PERIOD"]
[358908182,1745543256401,-667.87,0.00018082,2]
[358908183,1745543256422,-500.0,0.00018082,2]
[358908184,1745543256443,-530.88,0.00018082,2]
[358908185,1745543256463,-531.25,0.00018082,2]
[358908186,1745543256484,-500.0,0.00018082,2]
[358908187,1745543256504,-500.0,0.00018082,2]
[358908188,1745543256524,-1219.24,0.00018082,2]
[358908189,1745543256544,-500.0,0.00018082,2]
[358908190,1745543256564,-832.0,0.00018082,2]
[358908191,1745543256583,-500.0,0.00018082,2]
[358908192,1745543256604,-500.0,0.00018082,2]
[358908193,1745543256625,-507.88,0.00018082,2]
[358908194,1745543256644,-500.0,0.00018082,2]
[358908195,1745543256664,-2295.48,0.00018082,2]
[358908196,1745543256683,-710.8,0.00018082,2]
[358908197,1745543256705,-1753.22,0.00018082,2]
[358908198,1745543256726,-597.85,0.00018082,2]
[358908199,1745543256747,-500.0,0.00018082,2]
[358908200,1745543256773,-577.03,0.00018082,2]
[358908201,1745543257009,-500.0,0.00018082,2]
[358908202,1745543257032,-500.0,0.00018082,2]
[358908203,1745543257052,-754.72,0.00018082,2]
[358908204,1745543257074,-754.68,0.00018082,2]
[358908205,1745543257095,-2135.14,0.00018082,2]
[358908206,1745543257114,-500.0,0.00018082,2]
[358908207,1745543257134,-500.0,0.00018082,2]
[358908208,1745543257155,-1789.54,0.00018082,2]
[358908209,1745543257176,-533.09,0.00018082,2]
[358908210,1745543257197,-500.0,0.00018082,2]
[358908211,1745543257219,-702.35,0.00018082,2]
[358908212,1745543257240,-500.0,0.00018082,2]
[358908213,1745543257262,-640.85,0.00018082,2]
[358908214,1745543257284,-500.0,0.00018082,2]
[358908215,1745543257306,-5064.79,0.00018082,2]
[358908216,1745543257327,-500.0,0.00018082,2]
[358908217,1745543257349,-603.16,0.00018082,2]
[358908218,1745543257370,-500.0,0.00018082,2]
[358908219,1745543257392,-744.15,0.00018082,2]
[358908220,1745543257412,-1805.43,0.00018082,2]
[358908221,1745543257433,-500.0,0.00018082,2]
[358908222,1745543257454,-1403.65,0.00018082,2]
[358908223,1745543257480,-3983.28,0.00018082,2]
[358908224,1745543257504,-1671.18,0.00018082,2]
[358908225,1745543257527,-4503.75,0.00018082,2]
[358908226,1745543257547,-556.77,0.00018082,2]
[358908227,1745543257568,-500.26,0.00018082,2]
[358908228,1745543257590,-160533.95227848,0.00018087,2]
[358908229,1745543257623,-21200.463657,0.00018087,2]
[358908230,1745543257668,-79380.582264,0.00018087,2]
[358908231,1745543257736,-500.0,0.00016438,2]
[358908232,1745543257761,-500.0,0.00016712,2]
[358908233,1745543257782,-500.0,0.00016986,2]
[358908234,1745543257804,-122970.378909,0.00018087,2]
[358908235,1745543257937,-257.5067376,0.00016338,2]
[358908236,1745543257959,-500.0,0.0001726,2]
[358908237,1745543257983,-500.0,0.00017534,2]
[358908238,1745543258007,-500.0,0.00017808,2]
[358908239,1745543258029,-500.0,0.00018082,2]
[358908240,1745543258054,-131775.5556634,0.00018087,2]
[358908241,1745543258650,-206796.19982616,0.00018087,2]
[358908242,1745543258674,-170.04,0.00018087,2]
[358908243,1745543258693,-170.04,0.00018087,2]
[358908244,1745543258713,-170.04,0.00018087,2]
[358908245,1745543258733,-170.04,0.00018087,2]
[358908246,1745543258753,-170.04,0.00018087,2]
[358908247,1745543258777,-170.04995348,0.00018087,2]
[358908248,1745543258797,-2500.0,0.00018116,2]
[358908249,1745543258820,-600.0,0.00018144,2]
[358908250,1745543258843,-500.000001,0.0001827,2]
[358908251,1745543258863,-600.0,0.00018333,2]
[358908252,1745543258883,-500.0,0.00018356,2]
[358908253,1745543258903,-500.0,0.00018356,2]
[358908254,1745543258924,-500.0,0.00018356,2]
[358908255,1745543258944,-500.0,0.00018356,2]
[358908256,1745543258965,-500.0,0.00018356,2]
[358908257,1745543258986,-500.0,0.00018356,2]
[358908258,1745543259006,-500.0,0.00018356,2]
[358908259,1745543259030,-788.85,0.00018356,2]
[358908260,1745543259049,-500.0,0.00018356,2]
[358908261,1745543259070,-500.0,0.00018356,2]
[358908262,1745543259091,-500.0,0.00018356,2]
[358908263,1745543259111,-2448.0,0.00018356,2]
[358908264,1745543259131,-512.29,0.00018356,2]
[358908265,1745543259152,-500.0,0.00018356,2]
[358908266,1745543259172,-687.03,0.00018356,2]
[358908267,1745543259192,-573.28,0.00018356,2]
[358908268,1745543259214,-500.0,0.00018356,2]
[358908269,1745543259234,-500.0,0.00018356,2]
[358908270,1745543259254,-519.01,0.00018356,2]
[358908271,1745543259275,-500.0,0.00018356,2]
[358908272,1745543259295,-500.0,0.00018356,2]
[358908273,1745543259316,-662.66,0.00018356,2]
[358908274,1745543259336,-500.0,0.00018356,2]
[358908275,1745543259356,-500.0,0.00018356,2]
[358908276,1745543259375,-527.39,0.00018356,2]
[358908277,1745543259394,-672.91,0.00018356,2]
[358908278,1745543259413,-695.81,0.00018356,2]
[358908279,1745543259433,-1587.31,0.00018356,2]
[358908280,1745543259453,-609.61,0.00018356,2]
[358908281,1745543259472,-500.0,0.00018356,2]
[358908282,1745543259493,-500.0,0.00018356,2]
[358908283,1745543259517,-500.0,0.00018356,2]
[358908284,1745543259537,-500.0,0.00018356,2]
[358908285,1745543259556,-500.0,0.00018356,2]
[358908286,1745543259575,-819.16,0.00018356,2]
[358908287,1745543259595,-500.0,0.00018356,2]
[358908288,1745543259614,-512.49,0.00018356,2]
[358908289,1745543259634,-734.12,0.00018356,2]
[358908290,1745543259653,-500.0,0.00018356,2]
[358908291,1745543259673,-500.0,0.00018356,2]
[358908292,1745543259693,-500.0,0.00018356,2]
[358908293,1745543259713,-500.0,0.00018356,2]
[358908294,1745543259734,-534.22,0.00018356,2]
[358908295,1745543259755,-1608.85,0.00018356,2]
[358908296,1745543259780,-500.0,0.00018356,2]
[358908297,1745543259802,-500.0,0.00018356,2]
[358908298,1745543259823,-6827.91,0.00018356,2]
[358908299,1745543259844,-500.0,0.00018356,2]
[358908300,1745543259864,-776.48,0.00018356,2]
[358908301,1745543259883,-589.73,0.00018356,2]
[358908302,1745543259904,-500.0,0.00018356,2]
[358908303,1745543259924,-555.48,0.00018356,2]
[358908304,1745543259944,-500.0,0.00018356,2]
[358908305,1745543259963,-1263.62,0.00018356,2]
[358908306,1745543259982,-667.87,0.00018356,2]
[358908307,1745543260002,-500.0,0.00018356,2]
[358908308,1745543260023,-530.88,0.00018356,2]
[358908309,1745543260044,-531.25,0.00018356,2]
[358908310,1745543260064,-500.0,0.00018356,2]
[358908311,1745543260085,-500.0,0.00018356,2]
[358908312,1745543260233,-1219.24,0.00018356,2]
[358908313,1745543260283,-500.0,0.00018356,2]
[358908314,1745543260303,-832.0,0.00018356,2]
[358908315,1745543260324,-500.0,0.00018356,2]
[358908316,1745543260344,-500.0,0.00018356,2]
[358908317,1745543260364,-507.88,0.00018356,2]
[358908318,1745543260383,-500.0,0.00018356,2]
[358908319,1745543260402,-2295.48,0.00018356,2]
[358908320,1745543260421,-710.8,0.00018356,2]
[358908321,1745543260442,-1753.22,0.00018356,2]
[358908322,1745543260462,-597.85,0.00018356,2]
[358908323,1745543260482,-500.0,0.00018356,2]
[358908324,1745543260501,-577.03,0.00018356,2]
[358908325,1745543260520,-500.0,0.00018356,2]
[358908326,1745543260540,-500.0,0.00018356,2]
[358908327,1745543260560,-754.72,0.00018356,2]
[358908328,1745543260583,-754.68,0.00018356,2]
[358908329,1745543260605,-2135.14,0.00018356,2]
[358908330,1745543260627,-500.0,0.00018356,2]
[358908331,1745543260651,-500.0,0.00018356,2]
[358908332,1745543260674,-1789.54,0.00018356,2]
[358908333,1745543260693,-533.09,0.00018356,2]
[358908334,1745543260713,-500.0,0.00018356,2]
[358908335,1745543260735,-702.35,0.00018356,2]
[358908336,1745543260754,-500.0,0.00018356,2]
[358908337,1745543260778,-640.85,0.00018356,2]
[358908338,1745543260798,-500.0,0.00018356,2]
[358908339,1745543260823,-5064.79,0.00018356,2]
[358908340,1745543260846,-603.16,0.00018356,2]
[358908341,1745543260865,-500.0,0.00018356,2]
[358908342,1745543260885,-500.0,0.00018356,2]
[358908343,1745543260907,-744.15,0.00018356,2]
[358908344,1745543260929,-1805.43,0.00018356,2]
[358908345,1745543260948,-500.0,0.00018356,2]
[358908346,1745543260968,-1403.65,0.00018356,2]
[358908347,1745543260989,-3983.28,0.00018356,2]
[358908348,1745543261010,-1671.18,0.00018356,2]
[358908349,1745543261031,-4503.75,0.00018356,2]
[358908350,1745543261051,-556.77,0.00018356,2]
[358908351,1745543261071,-500.26,0.00018356,2]
[358908352,1745543261093,-191.03746936,0.00018356,2]
[358908395,1745543432791,-500.0,0.00016154,2]
[358908397,1745543432800,-265.55508083,0.00016154,2]
[358908398,1745543432810,-299.58441901,0.00016154,2]
[358908399,1745543432820,-600.0,0.00016154,2]
[358908401,1745543432831,-1000.0,0.00016156,2]
[358908402,1745543432840,-107.40328266,0.00016338,2]
[358909532,1745543448592,-500.0,0.00016153,2]
[358909534,1745543448604,-500.0,0.00016153,2]
[358909536,1745543448614,-470.12112747,0.00016153,2]
[358909538,1745543448625,-500.0,0.00016153,2]
[358909540,1745543448635,-500.0,0.00016153,2]
[358909541,1745543448646,-500.0,0.00016153,2]
[358909543,1745543448657,-189.21591273,0.00016153,2]
[358909545,1745543448667,-500.0,0.00016153,2]
[358909547,1745543448677,-500.0,0.00016153,2]
[358909549,1745543448691,-500.0,0.00016153,2]
[358909551,1745543448701,-500.0,0.00016153,2]
[358909553,1745543448712,-500.0,0.00016153,2]
[358909555,1745543448723,-500.0,0.00016153,2]
[358909557,1745543448734,-500.0,0.00016153,2]
[358909559,1745543448744,-500.0,0.00016153,2]
[358909560,1745543448754,-500.0,0.00016153,2]
[358909562,1745543448765,-500.0,0.00016153,2]
[358909564,1745543448777,-500.0,0.00016153,2]
[358909566,1745543448787,-500.0,0.00016153,2]
[358909568,1745543448797,-225.3183954,0.00016273,2]
[358909570,1745543448807,-75282.9595174,0.00016338,2]
[358909586,1745543448990,-8820.064696,0.00016338,2]
[358909696,1745543450580,-69740.34388732,0.00016338,2]
[358909699,1745543450593,-981.88026558,0.00016338,2]
[358909701,1745543450604,-154527.97920802,0.00016338,2]
[358909703,1745543450616,-752.55185998,0.00016338,2]
[358909705,1745543450628,-2561.80641442,0.00016338,2]
[358909708,1745543450640,-57225.01086862,0.00016338,2]
[358909710,1745543450649,-500.0,0.00016373,2]
[358909712,1745543450659,-500.0,0.00016373,2]
[358909714,1745543450669,-500.0,0.00016373,2]
[358909716,1745543450679,-500.0,0.00016373,2]
[358909717,1745543450691,-500.0,0.00016373,2]
[358909719,1745543450701,-500.0,0.00016373,2]
[358909721,1745543450711,-1009.13,0.00016438,2]
[358909723,1745543450721,-500.0,0.00016438,2]
[358909725,1745543450731,-4551.94,0.00016438,2]
[358909727,1745543450740,-500.0,0.00016438,2]
[358909729,1745543450749,-842.41,0.00016438,2]
[358909731,1745543450760,-500.0,0.00016438,2]
[358909733,1745543450770,-500.0,0.00016438,2]
[358909735,1745543450781,-500.0,0.00016438,2]
[358909737,1745543450791,-500.0,0.00016438,2]
[358909739,1745543450801,-500.0,0.00016438,2]
[358909741,1745543450811,-525.9,0.00016438,2]
[358909743,1745543450821,-500.0,0.00016438,2]
[358909745,1745543450830,-558.5866536,0.00016438,2]
[358909747,1745543450841,-500.0,0.00016438,2]
[358909749,1745543450854,-500.0,0.00016438,2]
[358909751,1745543450863,-500.0,0.00016438,2]
[358909753,1745543450873,-500.0,0.00016438,2]
[358909755,1745543450883,-500.0,0.00016438,2]
[358909757,1745543450893,-500.0,0.00016438,2]
[358909759,1745543450903,-1632.0,0.00016438,2]
[358909760,1745543450912,-500.0,0.00016438,2]
[358909761,1745543450922,-500.0,0.00016438,2]
[358909762,1745543450931,-1530.32,0.00016438,2]
[358909763,1745543450942,-500.0,0.00016438,2]
[358909764,1745543450951,-500.0,0.00016438,2]
[358909765,1745543450961,-500.0,0.00016438,2]
[358909766,1745543450977,-450.31431257,0.00016438,2]
[358909767,1745543450987,-500.0,0.00016438,2]
[358909768,1745543450997,-1423.43,0.00016438,2]
[358909769,1745543451008,-500.0,0.00016438,2]
[358909770,1745543451018,-503.15,0.00016438,2]
[358909771,1745543451027,-500.0,0.00016438,2]
[358909772,1745543451037,-500.0,0.00016438,2]
[358909773,1745543451047,-191.89367917,0.00016438,2]
[358909774,1745543451057,-500.0,0.00016438,2]
[358909775,1745543451066,-500.0,0.00016438,2]
[358909776,1745543451078,-500.0,0.00016438,2]
[358909777,1745543451088,-1193.02,0.00016438,2]
[358909778,1745543451097,-1168.81,0.00016438,2]
[358909779,1745543451106,-689.76,0.00016438,2]
[358909780,1745543451116,-500.0,0.00016438,2]
[358909781,1745543451126,-500.0,0.00016438,2]
[358909782,1745543451135,-500.0,0.00016438,2]
[358909783,1745543451144,-384.54112358,0.00016438,2]
[358909784,1745543451154,-364.19006561,0.00016438,2]
[358909785,1745543451163,-500.0,0.00016438,2]
[358909786,1745543451174,-638.08,0.00016438,2]
[358909787,1745543451183,-500.0,0.00016438,2]
[358909788,1745543451195,-500.0,0.00016438,2]
[358909789,1745543451205,-1058.21,0.00016438,2]
[358909790,1745543451215,-532.08,0.00016438,2]
[358909791,1745543451225,-500.0,0.00016438,2]
[358909792,1745543451234,-261.09437084,0.00016438,2]
[358909793,1745543451244,-500.0,0.00016438,2]
[358909794,1745543451253,-500.0,0.00016473,2]
[358909795,1745543451264,-160.0,0.00016548,2]
[358909796,1745543451274,-160.0,0.00016548,2]
[358909797,1745543451284,-840.0731918,0.00016548,2]
[358909798,1745543451293,-160.0,0.00016548,2]
[358909799,1745543451302,-12576.49486522,0.00016548,2]
[358909800,1745543451312,-420.89490186,0.00016587,2]
[358909801,1745543451322,-1009.13,0.00016712,2]
[358909802,1745543451331,-500.0,0.00016712,2]
[358909803,1745543451342,-4551.94,0.00016712,2]
[358909804,1745543451351,-500.0,0.00016712,2]
[358909805,1745543451361,-842.41,0.00016712,2]
[358909806,1745543451375,-500.0,0.00016712,2]
[358909807,1745543451385,-500.0,0.00016712,2]
[358909808,1745543451394,-500.0,0.00016712,2]
[358909809,1745543451404,-500.0,0.00016712,2]
[358909810,1745543451414,-500.0,0.00016712,2]
[358909811,1745543451424,-525.9,0.00016712,2]
[358909812,1745543451434,-500.0,0.00016712,2]
[358909813,1745543451446,-500.0,0.00016712,2]
[358909814,1745543451456,-500.0,0.00016712,2]
[358909815,1745543451466,-500.0,0.00016712,2]
[358909816,1745543451476,-500.0,0.00016712,2]
[358909817,1745543451486,-500.0,0.00016712,2]
[358909818,1745543451496,-500.0,0.00016712,2]
[358909819,1745543451681,-1632.0,0.00016712,2]
[358909820,1745543451694,-500.0,0.00016712,2]
[358909821,1745543451703,-500.0,0.00016712,2]
[358909822,1745543451714,-1530.32,0.00016712,2]
[358909823,1745543451725,-500.0,0.00016712,2]
[358909824,1745543451736,-500.0,0.00016712,2]
[358909825,1745543451745,-500.0,0.00016712,2]
[358909826,1745543451755,-500.0,0.00016712,2]
[358909827,1745543451764,-1423.43,0.00016712,2]
[358909828,1745543451774,-500.0,0.00016712,2]
[358909829,1745543451784,-503.15,0.00016712,2]
[358909830,1745543451793,-500.0,0.00016712,2]
[358909831,1745543451803,-500.0,0.00016712,2]
[358909832,1745543451812,-500.0,0.00016712,2]
[358909833,1745543451822,-500.0,0.00016712,2]
[358909834,1745543451831,-500.0,0.00016712,2]
[358909835,1745543451841,-1193.02,0.00016712,2]
[358909836,1745543451854,-1168.81,0.00016712,2]
[358909837,1745543451864,-689.76,0.00016712,2]
[358909838,1745543451874,-500.0,0.00016712,2]
[358909839,1745543451883,-500.0,0.00016712,2]
[358909840,1745543451894,-500.0,0.00016712,2]
[358909841,1745543451903,-500.0,0.00016712,2]
[358909842,1745543451913,-638.08,0.00016712,2]
[358909843,1745543451924,-500.0,0.00016712,2]
[358909844,1745543451935,-500.0,0.00016712,2]
[358909845,1745543451945,-1058.21,0.00016712,2]
[358909846,1745543451954,-532.08,0.00016712,2]
[358909847,1745543451966,-500.0,0.00016712,2]
[358909848,1745543451976,-1000.0,0.00016849,2]
[358909849,1745543451985,-1009.13,0.00016986,2]
[358909850,1745543451995,-500.0,0.00016986,2]
[358909851,1745543452015,-4551.94,0.00016986,2]
[358909852,1745543452024,-500.0,0.00016986,2]
[358909853,1745543452034,-842.41,0.00016986,2]
[358909854,1745543452043,-500.0,0.00016986,2]
[358909855,1745543452053,-500.0,0.00016986,2]
[358909856,1745543452063,-500.0,0.00016986,2]
[358909857,1745543452072,-500.0,0.00016986,2]
[358909858,1745543452082,-500.0,0.00016986,2]
[358909859,1745543452092,-525.9,0.00016986,2]
[358909860,1745543452101,-500.0,0.00016986,2]
[358909861,1745543452111,-500.0,0.00016986,2]
[358909862,1745543452120,-500.0,0.00016986,2]
[358909863,1745543452130,-500.0,0.00016986,2]
[358909864,1745543452140,-500.0,0.00016986,2]
[358909865,1745543452150,-500.0,0.00016986,2]
[358909866,1745543452161,-500.0,0.00016986,2]
[358909867,1745543452171,-1632.0,0.00016986,2]
[358909868,1745543452180,-500.0,0.00016986,2]
[358909869,1745543452191,-500.0,0.00016986,2]
[358909870,1745543452202,-1530.32,0.00016986,2]
[358909871,1745543452211,-500.0,0.00016986,2]
[358909872,1745543452222,-500.0,0.00016986,2]
[358909874,1745543452231,-500.0,0.00016986,2]
[358909876,1745543452241,-500.0,0.00016986,2]
[358909878,1745543452251,-1423.43,0.00016986,2]
[358909880,1745543452261,-500.0,0.00016986,2]
[358909882,1745543452271,-503.15,0.00016986,2]
[358909884,1745543452281,-500.0,0.00016986,2]
[358909886,1745543452291,-500.0,0.00016986,2]
[358909888,1745543452301,-500.0,0.00016986,2]
[358909890,1745543452311,-500.0,0.00016986,2]
[358909892,1745543452322,-500.0,0.00016986,2]
[358909894,1745543452332,-1193.02,0.00016986,2]
[358909896,1745543452342,-1168.81,0.00016986,2]
[358909898,1745543452353,-689.76,0.00016986,2]
[358909899,1745543452362,-500.0,0.00016986,2]
[358909900,1745543452372,-187.44922394,0.00016986,2]
[358909901,1745543452382,-500.0,0.00016986,2]
[358909902,1745543452391,-500.0,0.00016986,2]
[358909903,1745543452402,-638.08,0.00016986,2]
[358909904,1745543452411,-500.0,0.00016986,2]
[358909905,1745543452421,-1058.21,0.00016986,2]
[358909906,1745543452431,-500.0,0.00016986,2]
[358909907,1745543452441,-532.08,0.00016986,2]
[358909908,1745543452451,-500.0,0.00016986,2]
[358909909,1745543452460,-1009.13,0.0001726,2]
[358909910,1745543452469,-500.0,0.0001726,2]
[358909912,1745543452479,-4551.94,0.0001726,2]
[358909914,1745543452489,-500.0,0.0001726,2]
[358909916,1745543452498,-842.41,0.0001726,2]
[358909917,1745543452508,-500.0,0.0001726,2]
[358909919,1745543452518,-500.0,0.0001726,2]
[358909921,1745543452527,-500.0,0.0001726,2]
[358909923,1745543452536,-500.0,0.0001726,2]
[358909924,1745543452546,-500.0,0.0001726,2]
[358909926,1745543452555,-525.9,0.0001726,2]
[358909927,1745543452565,-500.0,0.0001726,2]
[358909928,1745543452574,-500.0,0.0001726,2]
[358909929,1745543452584,-500.0,0.0001726,2]
[358909930,1745543452595,-500.0,0.0001726,2]
[358909931,1745543452604,-500.0,0.0001726,2]
[358909932,1745543452614,-500.0,0.0001726,2]
[358909933,1745543452625,-500.0,0.0001726,2]
[358909934,1745543452634,-1632.0,0.0001726,2]
[358909935,1745543452643,-500.0,0.0001726,2]
[358909936,1745543452653,-500.0,0.0001726,2]
[358909937,1745543452664,-1530.32,0.0001726,2]
[358909938,1745543452673,-500.0,0.0001726,2]
[358909939,1745543452683,-500.0,0.0001726,2]
[358909940,1745543452694,-500.0,0.0001726,2]
[358909941,1745543452703,-500.0,0.0001726,2]
[358909942,1745543452713,-1423.43,0.0001726,2]
[358909943,1745543452723,-500.0,0.0001726,2]
[358909944,1745543452732,-503.15,0.0001726,2]
[358909945,1745543452742,-500.0,0.0001726,2]
[358909946,1745543452751,-500.0,0.0001726,2]
[358909947,1745543452761,-537.99664006,0.0001726,2]
[358909948,1745543452771,-500.0,0.0001726,2]
[358909949,1745543452781,-1193.02,0.0001726,2]
[358909950,1745543452790,-1168.81,0.0001726,2]
[358909951,1745543452799,-689.76,0.0001726,2]
[358909952,1745543452809,-500.0,0.0001726,2]
[358909953,1745543452819,-500.0,0.0001726,2]
[358909954,1745543452830,-500.0,0.0001726,2]
[358909955,1745543452841,-638.08,0.0001726,2]
[358909956,1745543452853,-500.0,0.0001726,2]
[358909957,1745543452864,-1058.21,0.0001726,2]
[358909958,1745543452874,-500.0,0.0001726,2]
[358909959,1745543452884,-532.08,0.0001726,2]
[358909960,1745543452895,-500.0,0.0001726,2]
[358909961,1745543452905,-1500.0,0.0001726,2]
[358909962,1745543452914,-403.0,0.00017288,2]
[358909963,1745543452926,-403.0,0.00017288,2]
[358909964,1745543452938,-1009.13,0.00017534,2]
[358909965,1745543452948,-500.0,0.00017534,2]
[358909966,1745543452958,-4551.94,0.00017534,2]
[358909967,1745543452968,-500.0,0.00017534,2]
[358909968,1745543452979,-842.41,0.00017534,2]
[358909969,1745543452988,-500.0,0.00017534,2]
[358909970,1745543452997,-500.0,0.00017534,2]
[358909971,1745543453007,-500.0,0.00017534,2]
[358909972,1745543453018,-500.0,0.00017534,2]
[358909973,1745543453027,-500.0,0.00017534,2]
[358909974,1745543453037,-525.9,0.00017534,2]
[358909975,1745543453047,-500.0,0.00017534,2]
[358909976,1745543453057,-500.0,0.00017534,2]
[358909977,1745543453067,-500.0,0.00017534,2]
[358909978,1745543453078,-500.0,0.00017534,2]
[358909979,1745543453088,-500.0,0.00017534,2]
[358909980,1745543453098,-500.0,0.00017534,2]
[358909981,1745543453107,-500.0,0.00017534,2]
[358909982,1745543453117,-1632.0,0.00017534,2]
[358909983,1745543453127,-401.56616858,0.00017534,2]
[358909984,1745543453137,-500.0,0.00017534,2]
[358909985,1745543453147,-1530.32,0.00017534,2]
[358909986,1745543453156,-500.0,0.00017534,2]
[358909987,1745543453167,-500.0,0.00017534,2]
[358909988,1745543453177,-500.0,0.00017534,2]
[358909989,1745543453189,-500.0,0.00017534,2]
[358909990,1745543453199,-1423.43,0.00017534,2]
[358909992,1745543453210,-500.0,0.00017534,2]
[358909994,1745543453220,-503.15,0.00017534,2]
[358909996,1745543453230,-500.0,0.00017534,2]
[358909998,1745543453241,-500.0,0.00017534,2]
[358910000,1745543453251,-500.0,0.00017534,2]
[358910002,1745543453262,-1193.02,0.00017534,2]
[358910004,1745543453272,-1168.81,0.00017534,2]
[358910006,1745543453282,-689.76,0.00017534,2]
[358910008,1745543453292,-500.0,0.00017534,2]
[358910010,1745543453302,-500.0,0.00017534,2]
[358910011,1745543453312,-500.0,0.00017534,2]
[358910013,1745543453323,-638.08,0.00017534,2]
[358910014,1745543453332,-500.0,0.00017534,2]
[358910015,1745543453342,-1058.21,0.00017534,2]
[358910017,1745543453351,-500.0,0.00017534,2]
[358910018,1745543453361,-532.08,0.00017534,2]
[358910019,1745543453370,-500.0,0.00017534,2]
[358910022,1745543453380,-2000.0,0.00017671,2]
[358910023,1745543453389,-1009.13,0.00017808,2]
[358910024,1745543453398,-574.41685933,0.00017808,2]
[358910025,1745543453408,-4551.94,0.00017808,2]
[358910026,1745543453418,-398.51449456,0.00017808,2]
[358910027,1745543453431,-842.41,0.00017808,2]
[358910028,1745543453442,-500.0,0.00017808,2]
[358910029,1745543453451,-500.0,0.00017808,2]
[358910030,1745543453461,-500.0,0.00017808,2]
[358910031,1745543453470,-500.0,0.00017808,2]
[358910032,1745543453480,-500.0,0.00017808,2]
[358910033,1745543453490,-525.9,0.00017808,2]
[358910034,1745543453501,-500.0,0.00017808,2]
[358910035,1745543453510,-500.0,0.00017808,2]
[358910036,1745543453520,-500.0,0.00017808,2]
[358910037,1745543453529,-500.0,0.00017808,2]
[358910038,1745543453540,-500.0,0.00017808,2]
[358910039,1745543453550,-500.0,0.00017808,2]
[358910040,1745543453560,-500.0,0.00017808,2]
[358910041,1745543453569,-1632.0,0.00017808,2]
[358910042,1745543453579,-500.0,0.00017808,2]
[358910043,1745543453589,-1530.32,0.00017808,2]
[358910044,1745543453599,-500.0,0.00017808,2]
[358910045,1745543453608,-500.0,0.00017808,2]
[358910046,1745543453618,-500.0,0.00017808,2]
[358910047,1745543453629,-500.0,0.00017808,2]
[358910048,1745543453639,-1423.43,0.00017808,2]
[358910049,1745543453649,-500.0,0.00017808,2]
[358910050,1745543453658,-503.15,0.00017808,2]
[358910051,1745543453669,-500.0,0.00017808,2]
[358910052,1745543453679,-500.0,0.00017808,2]
[358910053,1745543453692,-500.0,0.00017808,2]
[358910054,1745543453702,-1193.02,0.00017808,2]
[358910055,1745543453712,-1168.81,0.00017808,2]
[358910056,1745543453722,-689.76,0.00017808,2]
[358910057,1745543453732,-500.0,0.00017808,2]
[358910058,1745543453742,-500.0,0.00017808,2]
[358910059,1745543453753,-500.0,0.00017808,2]
[358910060,1745543453763,-638.08,0.00017808,2]
[358910061,1745543453772,-264.58119663,0.00017808,2]
[358910062,1745543453782,-403.98539403,0.00017808,2]